fUSD/lending_fUSD_20240519
["ID","MTS","AMOUNT","RATE_DAILY","PERIOD"]
[327463157,1716082262273,-500.0,0.00029314,2]
[327463158,1716082262283,-500.0,0.00029314,2]
[327463159,1716082262293,-500.0,0.00029314,2]
[327463160,1716082262304,-500.0,0.00029314,2]
[327463161,1716082262313,-500.0,0.00029314,2]
[327463162,1716082262323,-793.82,0.00029314,2]
[327463163,1716082262334,-500.0,0.00029314,2]
[327463164,1716082262343,-500.0,0.00029314,2]
[327463165,1716082262353,-687.64,0.00029314,2]
[327463166,1716082262363,-500.0,0.00029314,2]
[327463167,1716082262372,-500.0,0.00029314,2]
[327463168,1716082262381,-500.0,0.00029314,2]
[327463169,1716082262391,-500.0,0.00029314,2]
[327463170,1716082262401,-500.0,0.00029314,2]
[327463171,1716082262410,-500.0,0.00029314,2]
[327463172,1716082262420,-797.47,0.00029314,2]
[327463173,1716082262430,-739.51,0.00029314,2]
[327463174,1716082262439,-500.0,0.00029314,2]
[327463175,1716082262449,-500.0,0.00029314,2]
[327463176,1716082262459,-1955.27,0.00029314,2]
[327463177,1716082262468,-500.0,0.00029314,2]
[327463178,1716082262479,-500.0,0.00029314,2]
[327463179,1716082262488,-500.0,0.00029314,2]
[327463180,1716082262497,-500.0,0.00029314,2]
[327463181,1716082262507,-1178.57,0.00029314,2]
[327463182,1716082262518,-500.0,0.00029314,2]
[327463183,1716082262528,-955.1,0.00029314,2]
[327463184,1716082262539,-10244.61,0.00029314,2]
[327463185,1716082262551,-731.73079648,0.00029314,2]
[327463186,1716082262564,-308.0728337,0.00029314,2]
[327463191,1716082491971,191.09,0.00026381,120]
[327463193,1716082556806,205.0,9.8e-05,2]
[327463194,1716082589976,165.06332126,0.00025,120]
[327463195,1716082597806,1233.08863665,0.0001,2]
[327463206,1716083187285,1014.53,0.0003,90]
[327463228,1716083432794,-155.0,0.00011049,2]
[327463229,1716083432804,-155.0,0.0001105,2]
[327463230,1716083432814,-143.51,0.00011056,2]
[327463231,1716083432825,-387.38245761,0.00011056,2]
[327463232,1716083432836,-3361.64691932,0.00011077,2]
[327463233,1716083432846,-248.31502067,0.00011078,2]
[327463234,1716083432856,-3213.6556024,0.00011079,2]
[327463235,1716083432868,-277.94262863,0.00011079,2]
[327463236,1716083432974,-608.79,0.00011079,2]
[327463237,1716083432986,-361.15,0.00011079,2]
[327463271,1716083438581,-260.21525013,0.00011079,2]
[327463273,1716083438592,-627.57621706,0.00011079,2]
[327463275,1716083438604,-311.75649,0.00011079,2]
[327463283,1716083438738,-7181.97195759,0.00011079,2]
[327463284,1716083438749,-666.23816241,0.00011079,2]
[327463285,1716083439269,-212082.1348969,0.00011079,2]
[327463286,1716083439280,-7514.6512492,0.000118,2]
[327463287,1716083439292,-500.0,0.000124,4]
[327463288,1716083439304,-1100.0,0.000125,4]
[327463289,1716083439313,-1600.0,0.000126,4]
[327463290,1716083439325,-2200.0,0.000127,4]
[327463291,1716083439336,-2700.0,0.000128,4]
[327463292,1716083439346,-500.0,0.000129,4]
[327463293,1716083439361,-150.0,0.00012986,2]
[327463294,1716083439372,-189.7938559,0.0001299,2]
[327463295,1716083439382,-151.47148255,0.00012999,2]
[327463296,1716083439393,-5445690.08236427,0.00013,2]
[327463297,1716083439405,-562494.1823862,0.00013,2]
[327463298,1716083439417,-749370.75238392,0.00013,2]
[327463299,1716083439431,-72232.05546297,0.00013,2]
[327463300,1716083439444,-1086.93189934,0.00013,2]
[327463303,1716083439456,-326.12204379,0.00013,2]
[327463305,1716083439473,-4743.89536184,0.00013,2]
[327463309,1716083440651,-1121.2213578,0.00013,2]
[327463310,1716083440963,-708.38446547,0.00013,2]
[327463311,1716083440977,-6733.02504383,0.00013,2]
[327463312,1716083440990,-914.35207405,0.00013,2]
[327463313,1716083441023,-8136.80152,0.00013,2]
[327463314,1716083441039,-1650.21197094,0.00013,2]
[327463315,1716083441102,-3225.38988379,0.00013,2]
[327463316,1716083441116,-2899.27758015,0.00013,2]
[327463317,1716083441129,-5848.48918647,0.00013,2]
[327463318,1716083441142,-12499.87448313,0.00013,2]
[327463319,1716083441155,-257.59616578,0.00013,2]
[327463352,1716083443909,-155.40698357,0.00012999,2]
[327463353,1716083443924,-770.0989664,0.00013,2]
[327463354,1716083443938,-427.149998,0.00013,2]
[327463355,1716083443955,-1502.81579274,0.00013,2]
[327463356,1716083443969,-1286.76066713,0.00013,2]
[327463357,1716083444049,-344.10978337,0.00013,2]
[327463358,1716083444268,-503.99410468,0.00013,2]
[327463359,1716083444281,-2642.95810561,0.00013,2]
[327463388,1716083446488,-2008.60516693,0.00013,2]
[327463389,1716083446502,-5055.84604118,0.00013,2]
[327463390,1716083446515,-581.0,0.00013,2]
[327463391,1716083446634,-1174.38511235,0.00013,2]
[327463392,1716083446649,-2089.86470127,0.00013,2]
[327463393,1716083446662,-6293.32144232,0.00013,2]
[327463394,1716083446675,-16685.43148022,0.00013,2]
[327463395,1716083446688,-10626.67261,0.00013,2]
[327463396,1716083446701,-15244.77312,0.00013,2]
[327463397,1716083446714,-259.27805042,0.00013,2]
[327463398,1716083446727,-2287.15044994,0.00013,2]
[327463399,1716083446739,-278.97054483,0.00013,2]
[327463400,1716083447112,-2131.51534055,0.00013,2]
[327463401,1716083447125,-129121.4740412,0.00013,2]
[327463403,1716083447138,-93689.95089719,0.00013,2]
[327463405,1716083611209,326.38,0.0002481,120]
[327463406,1716083611438,326.38,0.00027291,120]
[327463407,1716083611858,326.38,0.00029772,120]
[327463490,1716084085462,182.22,0.0002737,120]
[327463502,1716084514454,-250.03511154,0.00012582,2]
[327463503,1716084514477,-1742.90296294,0.00012583,2]
[327463504,1716084514500,-155.0,0.00012583,2]
[327463505,1716084514523,-1477.30053704,0.000129,2]
[327463508,1716084532472,272.73619568,0.000129,2]
[327463509,1716084541352,305.0702227,0.0001287,2]
[327463510,1716084581304,-166.69007436,0.00012998,2]
[327463511,1716084581330,-155.61651065,0.00012998,2]
[327463512,1716084581355,-1127.74838509,0.00012998,2]
[327463513,1716084631840,-259.02589697,0.00012998,2]
[327463515,1716084631853,-90.52625498,0.00012998,2]
[327463516,1716084631862,-155.0,0.00012998,2]
[327463517,1716084631872,-156.44255916,0.00012999,2]
[327463518,1716084631882,-29.21631554,0.00013,2]
[327463521,1716084632171,-1272.24,0.00013,2]
[327463522,1716084632183,-1555.68226131,0.00013,2]
[327463523,1716084632194,-2049.42770371,0.00013,2]
[327463524,1716084632205,-15549.14852517,0.00013,2]
[327463535,1716084638149,-10831.79500732,0.00013,2]
[327463536,1716084638163,-3013.6632838,0.00013,2]
[327463537,1716084638175,-1350.0,0.00013,2]
[327463538,1716084638187,-2799.3000199,0.00013,2]
[327463539,1716084638200,-600.0,0.00013,2]
[327463540,1716084638211,-12586.2337103,0.00013,2]
[327463541,1716084638223,-489.7517793,0.00013,2]
[327463542,1716084638235,-2500.0,0.00013,2]
[327463543,1716084638247,-911.48925428,0.00013,2]
[327463544,1716084638411,-3094.32703647,0.00013,2]
[327463570,1716084640106,-125668.94613157,0.00013,2]
[327463573,1716084640387,-1513.607485,0.00013,2]
[327463574,1716084640400,-2359.69458057,0.00013,2]
[327463575,1716084640410,-1429.79861,0.00013,2]
[327463576,1716084640420,-162.68,0.00013973,2]
[327463577,1716084640430,-156.54,0.00013973,2]
[327463578,1716084640440,-2265.19627237,0.00016875,3]
[327463579,1716084640450,-2265.19627238,0.00016875,3]
[327463580,1716084640461,-1429.79862,0.00018,2]
[327463581,1716084640471,-27.22308247,0.00018984,2]
[327463582,1716084640484,-478.05691753,0.00018984,2]
[327463583,1716084640494,-157.7,0.00019758,2]
[327463584,1716084640504,-97.931649,0.00019769,2]
[327463605,1716084646251,-59.768351,0.00019769,2]
[327463606,1716084646262,-170.3,0.0001977,2]
[327463607,1716084646272,-157.7,0.0001978,2]
[327463608,1716084646282,-157.7,0.00019791,2]
[327463609,1716084646293,-157.7,0.00019802,2]
[327463610,1716084646303,-157.7,0.00019813,2]
[327463611,1716084646313,-157.7,0.00019824,2]
[327463612,1716084646322,-157.7,0.00019835,2]
[327463613,1716084646332,-157.7,0.00019846,2]
[327463614,1716084646341,-326.38,0.00019848,2]
[327463615,1716084646350,-157.7,0.00019857,2]
[327463616,1716084646360,-144.94218243,0.00019858,2]
[327463617,1716084646371,-7369.53865698,0.00019858,2]
[327463618,1716084646383,-2485.51916059,0.00019858,2]
[327463619,1716084646392,-2908.0,0.00019989,2]
[327463621,1716084646401,-2000.0,0.0002,15]
[327463622,1716084646410,-250.0,0.00020343,2]
[327463623,1716084646420,-71.58183941,0.00020488,2]
[327463624,1716084646452,-155.0,0.00017259,2]
[327463625,1716084646461,-928.41816059,0.00020488,2]
[327463626,1716084646471,-163.52,0.00020492,2]
[327463627,1716084646480,-126.90776873,0.00020527,2]
[327463628,1716084702221,152.0,0.0003,90]
[327463647,1716085450186,5347.12747509,0.0003,90]
[327463648,1716085485638,19375.93889114,0.0003,90]
[327463658,1716085833822,-3089.78671898,0.00011718,2]
[327463659,1716085833832,-4742.86864626,0.00011719,2]
[327463660,1716085833842,-1272.58154442,0.00011719,2]
[327463661,1716085833851,-155.0,0.00011719,2]
[327463662,1716085833861,-1214.24746193,0.0001172,2]
[327463663,1716085833871,-324.83989913,0.0001172,2]
[327463664,1716085833880,-2186.10698807,0.00011721,2]
[327463665,1716085833890,-1000.0,0.00011722,2]
[327463666,1716085833900,-405.93422196,0.00011722,2]
[327463667,1716085833909,-150.0,0.00011722,2]
[327463668,1716085833919,-150.0,0.00011722,2]
[327463669,1716085833928,-775.22,0.00011742,2]
[327463670,1716085833938,-10936.93432799,0.000124,2]
[327463671,1716085833947,-252.38036724,0.000125,2]
[327463672,1716085833957,-400.0,0.000127,4]
[327463673,1716085833966,-250.0,0.00012782,2]
[327463674,1716085833976,-900.0,0.000128,4]
[327463675,1716085833987,-30128.56897838,0.00012831,2]
[327463676,1716085833996,-3503.11,0.0001284,2]
[327463677,1716085834007,-4058.44399362,0.00012894,2]
[327463678,1716085834015,-41.73128514,0.00012894,2]
[327463679,1716085834028,-158.41557385,0.00012894,2]
[327463680,1716085834038,-178.89335638,0.00012894,2]
[327463681,1716085834048,-178.63273518,0.00012894,2]
[327463682,1716085834058,-161.47082104,0.00012894,2]
[327463683,1716085834067,-183.63017979,0.00012894,2]
[327463684,1716085834077,-2546.28046245,0.00012894,2]
[327463686,1716085834087,-16321.3566,0.00012897,2]
[327463688,1716085834096,-2177.62,0.00012897,2]
[327463689,1716085834106,-1400.0,0.000129,4]
[327463690,1716085834115,-10289.36660005,0.00012994,2]
[327463691,1716085834127,-1423.68514835,0.00012994,2]
[327463692,1716085834139,-665.56824691,0.00012994,2]
[327463693,1716085834151,-6501.98717225,0.00012994,2]
[327463694,1716085834163,-30133.999995,0.00012994,2]
[327463695,1716085834175,-484.32,0.00012994,2]
[327463696,1716085834187,-4318.56012524,0.00012994,2]
[327463697,1716085834199,-685.05424735,0.00012994,2]
[327463698,1716085834211,-6726.11965395,0.00012994,2]
[327463699,1716085834249,-1190.52067092,0.00012994,2]
[327463700,1716085834261,-578.64450262,0.00012994,2]
[327463701,1716085834273,-4720.96206971,0.00012994,2]
[327463702,1716085834285,-517.9614323,0.00012994,2]
[327463703,1716085834297,-803.1102161,0.00012994,2]
[327463704,1716085834308,-3913.38875614,0.00012994,2]
[327463705,1716085838088,-382.62558184,0.00012994,2]
[327463707,1716085838248,-1422.6949102,0.00012994,2]
[327463708,1716085838261,-729.82228752,0.00012994,2]
[327463709,1716085838273,-2022.52795283,0.00012994,2]
[327463710,1716085838286,-1325.81220542,0.00012994,2]
[327463711,1716085838297,-858.60451901,0.00012994,2]
[327463712,1716085838413,-562494.1823862,0.00012994,2]
[327463713,1716085838427,-100765.11383158,0.00012994,2]
[327463714,1716085838439,-28663.21010576,0.00012994,2]
[327463715,1716085838451,-2774.23906792,0.00012994,2]
[327463716,1716085838577,-1636.7040872,0.00012994,2]
[327463719,1716085840285,-252.43701998,0.00012994,2]
[327463720,1716085840299,-922.8938064,0.00012994,2]
[327463721,1716085840312,-368609.697556,0.00012994,2]
[327463722,1716085840472,-1115.58827689,0.00012994,2]
[327463723,1716085840632,-4896.92,0.00012994,2]
[327463724,1716085840646,-659.94979241,0.00012994,2]
[327463725,1716085840659,-662.47809905,0.00012994,2]
[327463726,1716085840672,-406.24944498,0.00012994,2]
[327463727,1716085840685,-5299.5959166,0.00012994,2]
[327463728,1716085840698,-696.2,0.00012994,2]
[327463729,1716085840710,-332.20384616,0.00012994,2]
[327463730,1716085840724,-1360.22965064,0.00012994,2]
[327463731,1716085840740,-819.42463014,0.00012994,2]
[327463732,1716085840753,-1053.43307152,0.00012994,2]
[327463733,1716085840766,-783.72500003,0.00012994,2]
[327463734,1716085840779,-1220.56796134,0.00012994,2]
[327463735,1716085840792,-45009.6069027,0.00012994,2]
[327463736,1716085840806,-7058.3,0.00012994,2]
[327463737,1716085843445,-527.96305207,0.00012994,2]
[327463738,1716085843459,-1272.84897139,0.00012994,2]
[327463748,1716085843855,-137885.69755735,0.00012994,2]
[327463749,1716085843865,-3072.01721319,0.00012994,2]
[327463750,1716085843875,-300.6430529,0.00012994,2]
[327463751,1716085843885,-709.19009268,0.00012995,2]
[327463752,1716085843895,-33831.26979574,0.00012995,2]
[327463753,1716085843905,-361.00626686,0.00012995,2]
[327463754,1716085843914,-3044.4845879,0.00012995,2]
[327463755,1716085843924,-544904.07999263,0.00012996,2]
[327463756,1716085843933,-159.14,0.00013102,2]
[327463757,1716085843942,-163.19,0.00013627,2]
[327463758,1716085843952,-1800.98,0.00013699,2]
[327463759,1716085843961,-159.14,0.00013785,2]
[327463760,1716085843970,-800.0,0.00013865,2]
[327463761,1716085843980,-775.22,0.00014006,2]
[327463762,1716085843989,-23900.0,0.00014628,2]
[327463763,1716085843998,-170.46,0.00015345,2]
[327463764,1716085844008,-3503.11,0.0001558,2]
[327463765,1716085844017,-4058.44399358,0.0001559,2]
[327463766,1716085844026,-800.0,0.00015598,2]
[327463767,1716085844035,-183.95,0.00015832,2]
[327463768,1716085844045,-168.9,0.00015888,2]
[327463769,1716085844054,-180.0,0.00016152,2]
[327463770,1716085844063,-775.22,0.0001627,2]
[327463771,1716085844072,-170.46,0.00016431,2]
[327463772,1716085844081,-200.0,0.00016523,2]
[327463773,1716085844091,-1046.81141598,0.00016742,3]
[327463774,1716085844100,-1046.81141599,0.00016742,3]
[327463775,1716085844109,-800.0,0.00017331,2]
[327463776,1716085844118,-170.46,0.00017516,2]
[327463777,1716085844127,-161.47082104,0.00017563,2]
[327463778,1716085844136,-200.14685899,0.00017566,2]
[327463779,1716085844146,-4058.44399358,0.00018287,2]
[327463780,1716085844155,-3503.11,0.0001832,2]
[327463781,1716085844165,-775.22,0.00018534,2]
[327463782,1716085844175,-168.9,0.00018536,2]
[327463783,1716085844184,-200.0,0.00018588,2]
[327463784,1716085844194,-170.46,0.00018601,2]
[327463785,1716085844203,-800.0,0.00019064,2]
[327463786,1716085844212,-1800.98,0.00019178,2]
[327463787,1716085844222,-218.49,0.00019613,15]
[327463788,1716085844232,-150.5,0.00019623,15]
[327463789,1716085844242,-190.0,0.000197,15]
[327463790,1716085844251,-152.0,0.000197,15]
[327463791,1716085844261,-190.0,0.0001971,15]
[327463792,1716085844271,-152.0,0.0001971,15]
[327463793,1716085844280,-190.0,0.0001972,15]
[327463794,1716085844290,-152.0,0.0001972,15]
[327463795,1716085844299,-163.19,0.0002044,2]
[327463796,1716085844309,-953.19907,0.00020527,2]
[327463797,1716085844318,-55.31223127,0.00020527,2]
[327463798,1716085844327,-9153.3711703,0.00020583,2]
[327463799,1716085844336,-10630.4093862,0.00020597,2]
[327463800,1716085844346,-200.0,0.00020653,2]
[327463801,1716085844355,-800.0,0.00020797,2]
[327463802,1716085844365,-775.22,0.00020798,2]
[327463803,1716085844375,-176.99,0.0002082,2]
[327463804,1716085844383,-168.61,0.00020954,2]
[327463805,1716085844393,-4058.44399358,0.00020983,2]
[327463806,1716085844403,-168.9,0.00021184,2]
[327463808,1716085844413,-1012.62184264,0.00022,7]
[327463809,1716085844423,-596.0,0.000221,2]
[327463810,1716085844433,-161.47082104,0.00022231,2]
[327463811,1716085844443,-200.14685899,0.00022237,2]
[327463813,1716085844452,-1400.0,0.000223,2]
[327463814,1716085844461,-200.0,0.00022718,2]
[327463815,1716085844471,-151.8663035,0.00023031,2]
[327463816,1716085844480,-775.22,0.00023061,2]
[327463817,1716085844495,-1312.86629662,0.00023651,2]
[327463818,1716085844504,-4058.44399358,0.0002368,2]
[327463819,1716085844513,-168.9,0.00023832,2]
[327463820,1716085844523,-182.22,0.00023949,2]
[327463821,1716085844533,-151.8663035,0.00024644,2]
[327463822,1716085844542,-250.0,0.00024658,2]
[327463823,1716085844551,-200.0,0.00024784,2]
[327463824,1716085844561,-254.56829293,0.00024889,2]
[327463825,1716085844573,-254.5682929,0.00024889,2]
[327463826,1716085844582,-254.5682929,0.00024889,2]
[327463827,1716085844591,-254.5682929,0.00024889,2]
[327463828,1716085844600,-254.5682929,0.00024889,2]
[327463829,1716085844609,-254.5682929,0.00024889,2]
[327463830,1716085844618,-524.56125408,0.00024896,2]
[327463831,1716085844628,-155.0,0.00024896,2]
[327463832,1716085844637,-177.59763117,0.00024896,2]
[327463833,1716085844647,-190.01635282,0.00024896,2]
[327463834,1716085844656,-241.56711193,0.00024896,2]
[327463835,1716085844667,-155.61631494,0.00024896,2]
[327463836,1716085844676,-227.84658042,0.00024896,2]
[327463837,1716085844686,-2009.520766,0.00024896,2]
[327463838,1716085844696,-215.60601876,0.00024896,2]
[327463839,1716085844706,-156.33174362,0.00024896,2]
[327463840,1716085844716,-657.49570605,0.00024897,2]
[327463841,1716085844726,-208.0,0.000249,2]
[327463842,1716085844736,-1045.72754486,0.00024952,10]
[327463843,1716085844746,-31100.64843794,0.0002499,7]
[327463844,1716085844756,-2891.24348223,0.00025,7]
[327463845,1716085844765,-1000.0,0.00025,5]
[327463846,1716085844775,-300.0,0.00025,7]
[327463847,1716085844784,-775.22,0.00025325,2]
[327463848,1716085844793,-254.5682929,0.00025351,2]
[327463849,1716085844803,-208.0,0.0002548,2]
[327463850,1716085844813,-953.19908,0.00025527,2]
[327463851,1716085844822,-824.0,0.00025737,2]
[327463852,1716085844832,-1000.0,0.00025858,2]
[327463853,1716085844841,-208.0,0.0002606,2]
[327463854,1716085844850,-10000.0,0.00026076,2]
[327463855,1716085844860,-157.051911,0.00026148,4]
[327463856,1716085844869,-1516.75960056,0.00026241,2]
[327463857,1716085844879,-4058.44399358,0.00026376,2]
[327463858,1716085844889,-157.051911,0.00026448,4]
[327463859,1716085844899,-10759.5,0.00026591,2]
[327463860,1716085844909,-1109.95,0.00026591,2]
[327463861,1716085844918,-2885.39,0.00026591,2]
[327463862,1716085844928,-2274.35,0.00026591,2]
[327463863,1716085844938,-942.01,0.00026591,2]
[327463864,1716085844948,-208.0,0.0002665,2]
[327463865,1716085844958,-157.051911,0.00026748,8]
[327463866,1716085844969,-415.34,0.00026877,2]
[327463867,1716085844980,-415.34,0.00026877,2]
[327463868,1716085844989,-415.34,0.00026877,2]
[327463869,1716085844998,-415.34,0.00026877,2]
[327463870,1716085845008,-161.47082104,0.000269,2]
[327463871,1716085845018,-1900.0,0.000269,9]
[327463872,1716085845027,-600.58632379,0.000269,2]
[327463873,1716085845037,-477.7550029,0.000269,2]
[327463874,1716085845046,-200.14685899,0.00026909,2]
[327463875,1716085845056,-564568.71719729,0.00027,30]
[327463876,1716085845067,-1000.0,0.00027,7]
[327463877,1716085845078,-157.051911,0.00027148,10]
[327463878,1716085845088,-208.0,0.0002723,2]
[327463879,1716085845098,-209.0,0.0002723,2]
[327463880,1716085845110,-162.84643053,0.000273,2]
[327463881,1716085845120,-162.84643052,0.000273,2]
[327463882,1716085845130,-439.922,0.0002735,2]
[327463883,1716085845141,-496.373,0.0002735,2]
[327463884,1716085845151,-165.819,0.0002735,2]
[327463885,1716085845161,-814.251,0.0002735,2]
[327463886,1716085845170,-614.301,0.0002735,2]
[327463887,1716085845179,-1648.0,0.0002735,2]
[327463888,1716085845188,-1977.0,0.0002735,2]
[327463889,1716085845197,-1812.0,0.0002735,2]
[327463890,1716085845207,-150.541,0.0002735,2]
[327463891,1716085845217,-215.0,0.0002735,2]
[327463892,1716085845226,-3168.038,0.0002735,2]
[327463893,1716085845237,-1138.0,0.0002735,2]
[327463894,1716085845246,-5915.0,0.0002735,2]
[327463895,1716085845257,-973.0,0.0002735,2]
[327463896,1716085845268,-5755.0,0.0002735,2]
[327463897,1716085845278,-2160.0,0.0002735,2]
[327463898,1716085845288,-289.0,0.0002735,2]
[327463899,1716085845297,-37868.0,0.0002735,2]
[327463900,1716085845307,-1464.0,0.0002735,2]
[327463901,1716085845318,-661.015,0.0002735,2]
[327463902,1716085845327,-1267.446,0.0002735,2]
[327463903,1716085845336,-500.0,0.00027369,2]
[327463904,1716085845347,-500.0,0.00027369,2]
[327463905,1716085845356,-500.0,0.00027369,2]
[327463906,1716085845366,-500.0,0.00027369,2]
[327463907,1716085845375,-500.0,0.00027369,2]
[327463908,1716085845384,-500.0,0.00027369,2]
[327463909,1716085845394,-500.0,0.00027369,2]
[327463910,1716085845403,-500.0,0.00027369,2]
[327463911,1716085845413,-500.0,0.00027369,2]
[327463912,1716085845422,-500.0,0.00027369,2]
[327463913,1716085845431,-500.0,0.00027369,2]
[327463914,1716085845441,-500.0,0.00027369,2]
[327463915,1716085845450,-500.0,0.00027369,2]
[327463916,1716085845460,-500.0,0.00027369,2]
[327463917,1716085845469,-500.0,0.00027369,2]
[327463918,1716085845479,-500.0,0.00027369,2]
[327463919,1716085845494,-500.0,0.00027369,2]
[327463920,1716085845503,-500.0,0.00027369,2]
[327463921,1716085845512,-500.0,0.00027369,2]
[327463922,1716085845522,-500.0,0.00027369,2]
[327463923,1716085845532,-592.51678776,0.00027369,2]
[327463924,1716085845542,-500.0,0.00027397,2]
[327463925,1716085845551,-382.84005946,0.00027397,2]
[327463926,1716085845560,-505.1041857,0.00027397,2]
[327463927,1716085845570,-500.0,0.00027397,2]
[327463928,1716085845580,-500.0,0.00027397,2]
[327463929,1716085845589,-500.0,0.00027397,2]
[327463930,1716085845599,-500.0,0.00027397,2]
[327463931,1716085845608,-500.0,0.00027397,2]
[327463932,1716085845618,-384.9647248,0.00027397,2]
[327463933,1716085845627,-500.0,0.00027397,2]
[327463934,1716085845637,-500.0,0.00027397,2]
[327463935,1716085845646,-500.0,0.00027397,2]
[327463936,1716085845655,-334.26534524,0.00027397,2]
[327463937,1716085845665,-500.0,0.00027397,2]
[327463938,1716085845675,-371.66703799,0.00027397,2]
[327463939,1716085845685,-508.55019214,0.00027397,2]
[327463940,1716085845694,-500.0,0.00027397,2]
[327463941,1716085845704,-507.11607495,0.00027397,2]
[327463942,1716085845714,-500.0,0.00027397,2]
[327463943,1716085845723,-500.0,0.00027397,2]
[327463944,1716085845733,-696.98,0.00027397,2]
[327463945,1716085845743,-500.0,0.00027397,2]
[327463946,1716085845753,-611.79,0.00027397,2]
[327463947,1716085845762,-500.0,0.00027397,2]
[327463948,1716085845771,-548.87,0.00027397,2]
[327463949,1716085845780,-500.0,0.00027397,2]
[327463950,1716085845790,-500.0,0.00027397,2]
[327463951,1716085845799,-500.0,0.00027397,2]
[327463952,1716085845808,-500.0,0.00027397,2]
[327463953,1716085845817,-500.0,0.00027397,2]
[327463954,1716085845826,-500.0,0.00027397,2]
[327463955,1716085845835,-500.0,0.00027397,2]
[327463956,1716085845844,-500.0,0.00027397,2]
[327463957,1716085845853,-500.0,0.00027397,2]
[327463958,1716085845863,-500.0,0.00027397,2]
[327463959,1716085845873,-500.0,0.00027397,2]
[327463960,1716085845882,-500.0,0.00027397,2]
[327463961,1716085845891,-500.0,0.00027397,2]
[327463962,1716085845900,-500.0,0.00027397,2]
[327463963,1716085845910,-562.85,0.00027397,2]
[327463964,1716085845919,-500.0,0.00027397,2]
[327463965,1716085845928,-571.32,0.00027397,2]
[327463966,1716085845938,-517.5406333,0.00027397,2]
[327463967,1716085845947,-503.4,0.00027397,2]
[327463968,1716085845959,-500.0,0.00027397,2]
[327463969,1716085845969,-500.0,0.00027397,2]
[327463970,1716085845981,-500.0,0.00027397,2]
[327463971,1716085845990,-162.77,0.00027397,2]
[327463972,1716085845999,-500.0,0.00027397,2]
[327463973,1716085846009,-523.89811036,0.00027397,2]
[327463974,1716085846018,-500.0,0.00027397,2]
[327463975,1716085846028,-525.96,0.00027397,2]
[327463976,1716085846037,-500.0,0.00027397,2]
[327463977,1716085846047,-500.0,0.00027397,2]
[327463978,1716085846058,-500.0,0.00027397,2]
[327463979,1716085846068,-506.55262471,0.00027397,2]
[327463980,1716085846078,-527.53653026,0.00027397,2]
[327463981,1716085846088,-500.0,0.00027397,2]
[327463982,1716085846098,-500.0,0.00027397,2]
[327463983,1716085846108,-500.0,0.00027397,2]
[327463984,1716085846117,-500.0,0.00027397,2]
[327463985,1716085846128,-1032.49,0.00027397,2]
[327463986,1716085846137,-1349.16,0.00027397,2]
[327463987,1716085846193,-500.0,0.00027397,2]
[327463988,1716085846202,-500.0,0.00027397,2]
[327463989,1716085846212,-500.0,0.00027397,2]
[327463990,1716085846222,-606.77,0.00027397,2]
[327463991,1716085846233,-553.62,0.00027397,2]
[327463992,1716085846241,-525.92983994,0.00027397,2]
[327463993,1716085846251,-500.0,0.00027397,2]
[327463994,1716085846260,-500.0,0.00027397,2]
[327463995,1716085846270,-244.98725298,0.00027397,2]
[327463996,1716085846281,-500.0,0.00027397,2]
[327463997,1716085846290,-292.07535401,0.00027397,2]
[327463998,1716085846299,-500.0,0.00027397,2]
[327463999,1716085846309,-500.0,0.00027397,2]
[327464000,1716085846318,-345.51026611,0.00027397,2]
[327464001,1716085846328,-500.0,0.00027397,2]